bitfinex-derivatives/quotes_ETHF0:USTF0_20251126
["timestamp","ask_amount","ask_price","bid_price","bid_amount"]
[1764129843591,1.69893264,2934.1,2933.1,5.855252]
[1764129843890,1.69893264,2934.1,2933.1,4.017]
[1764129844786,1.69893264,2934.1,2933.1,5.85525557]
[1764129845290,1.53806903,2933.9,2933.1,1.83825557]
[1764129845491,0.79728144,2933.8,2933.1,1.83825557]
[1764129845689,1.53806903,2933.9,2933.1,1.83825557]
[1764129845883,0.79725284,2933.8,2933.1,1.83825557]
[1764129846083,0.9016512,2934.1,2933.1,1.83825557]
[1764129846284,1.6989057,2934.1,2933.1,1.83825557]
[1764129848892,1.53806903,2933.3,2933.0,1.83825557]
[1764129849083,1.92841084,2933.7,2932.9,1.83825557]
[1764129849394,1.75790084,2933.7,2933.0,3.3763246]
[1764129850594,3.29596987,2933.7,2933.0,1.83825557]
[1764129850787,3.29596987,2933.7,2932.9,1.83825557]
[1764129852494,3.29596987,2933.7,2933.0,1.83825557]
[1764129853390,0.79760477,2933.6,2933.0,1.83825557]
[1764129853586,3.29596987,2933.7,2933.0,1.83825557]
[1764129853788,0.79758875,2933.6,2932.9,1.83825557]
[1764129853984,3.29596987,2933.7,2932.9,1.83825557]
[1764129854287,0.79757725,2933.6,2933.0,1.83825557]
[1764129854485,0.90243793,2933.9,2933.0,1.83825557]
[1764129854691,0.79781865,2933.8,2933.1,3.3763246]
[1764129854892,0.79781865,2933.7,2933.1,3.3763246]
[1764129855195,0.90243793,2934.0,2933.1,3.3763246]
[1764129855496,1.70026039,2933.9,2933.1,3.3763246]
[1764129855691,0.79782246,2933.8,2933.1,3.3763246]
[1764129856090,0.79782246,2933.7,2933.1,3.3763246]
[1764129856292,0.90243793,2933.9,2933.1,3.3763246]
[1764129857689,1.70035713,2933.9,2933.1,1.53806903]
[1764129857893,0.7979192,2933.8,2933.1,1.53806903]
[1764129858094,0.7979192,2933.7,2933.1,3.16506903]
[1764129858296,0.79895863,2933.6,2933.1,3.16506903]
[1764129858497,0.90243793,2933.9,2933.1,3.16506903]
[1764129858794,0.79896128,2933.8,2933.1,5.00106903]
[1764129858994,0.79896128,2933.7,2933.1,5.00106903]
[1764129859194,0.79896128,2933.6,2933.1,5.00106903]
[1764129859497,0.90308884,2933.9,2933.1,5.75106903]
[1764129859688,1.20104354,2934.1,2933.1,5.75106903]
[1764129859689,0.79902696,2933.8,2933.1,5.75106903]
[1764129859889,0.79902696,2933.7,2933.1,5.75106903]
[1764129860099,0.90308884,2934.0,2933.1,5.75106903]
[1764129861594,1.53806903,2933.9,2932.9,2.44833405]
[1764129861802,0.79905513,2933.8,2932.8,0.00875905]
[1764129862098,0.79905513,2933.8,2932.9,1.54]
[1764129863088,0.79905513,2933.8,2933.1,1.53806903]
[1764129863293,0.79905513,2933.7,2933.0,2.084]
[1764129863498,2.44115787,2934.0,2933.0,2.084]
[1764129863693,0.7991983,2933.9,2933.0,2.084]
[1764129863894,0.7991983,2933.8,2933.0,2.084]
[1764129864096,2.44115787,2934.0,2933.0,2.084]
[1764129864097,0.7991983,2933.7,2933.0,2.084]
[1764129864399,2.44115787,2934.0,2933.0,2.084]
[1764129864600,0.79921482,2933.9,2933.0,2.084]
[1764129864798,0.79921482,2933.8,2933.0,2.084]
[1764129864998,0.79921482,2933.7,2933.0,2.084]
[1764129865201,2.44115787,2934.0,2933.0,2.084]
[1764129865397,0.79920085,2933.9,2932.9,2.44833405]
[1764129865595,0.79920085,2933.8,2933.0,1.827]
[1764129865794,0.79920085,2933.7,2933.0,1.827]
[1764129865990,2.44115787,2934.0,2933.0,3.824]
[1764129866200,1.53806903,2933.7,2932.9,1.992]
[1764129866401,0.79913666,2933.6,2932.8,0.00875905]
[1764129866700,0.79913666,2933.5,2932.8,0.00875905]
[1764129866892,1.53806903,2933.7,2932.8,0.00875905]
[1764129867094,0.79894234,2933.6,2932.8,0.00875905]
[1764129867294,0.79894234,2933.5,2932.8,1.54682808]
[1764129867495,1.07358884,2933.8,2932.8,5.05082808]
[1764129867695,0.79889986,2933.7,2932.8,5.05082808]
[1764129867895,0.79889986,2933.6,2932.8,5.05082808]
[1764129868101,0.79889895,2933.5,2932.8,5.05082808]
[1764129868302,1.07358884,2933.8,2932.8,5.05082808]
[1764129868303,0.1705,2933.8,2932.8,5.05082808]
[1764129868597,1.07358884,2933.8,2932.8,5.05082808]
[1764129868800,0.7988028,2933.7,2932.8,5.05082808]
[1764129869002,0.7988028,2933.6,2932.8,5.05082808]
[1764129869299,0.1705,2933.8,2932.8,5.05082808]
[1764129869498,1.07358884,2933.8,2932.8,5.05082808]
[1764129869798,0.79879727,2933.7,2932.8,1.54682808]
[1764129870000,0.79879727,2933.6,2932.9,2.489]
[1764129870194,1.07358884,2933.8,2932.9,2.489]
[1764129870389,1.07358884,2933.8,2932.8,1.54682808]
[1764129870390,0.79879422,2933.7,2932.8,1.54682808]
[1764129870592,0.79879422,2933.6,2932.9,4.306]
[1764129870790,0.1705,2933.8,2932.9,4.306]
[1764129870995,0.79879231,2933.7,2932.9,4.306]
[1764129871198,0.79879231,2933.6,2932.9,4.306]
[1764129871501,0.90308884,2933.9,2932.9,4.306]
[1764129871698,0.79880026,2933.8,2932.9,4.306]
[1764129871903,1.7018891,2933.8,2932.9,4.306]
[1764129872101,0.79880026,2933.7,2932.9,4.306]
[1764129872405,0.79880026,2933.6,2932.9,4.306]
[1764129872604,0.90308884,2933.9,2932.9,4.306]
[1764129872804,0.79881335,2933.8,2932.9,4.306]
[1764129873004,0.79881335,2933.7,2932.9,4.306]
[1764129873304,0.79881335,2933.6,2932.9,4.306]
[1764129873503,0.90308884,2933.9,2932.9,4.306]
[1764129873699,0.79878868,2933.8,2932.9,4.306]
[1764129873907,0.79878868,2933.7,2932.9,4.306]
[1764129874104,0.79878868,2933.6,2932.9,4.306]
[1764129874294,0.90308884,2933.9,2932.9,4.306]
[1764129874498,0.79879592,2933.8,2932.9,4.306]
[1764129874698,0.79879592,2933.7,2932.9,4.306]
[1764129874900,0.79879592,2933.6,2932.9,4.306]
[1764129875098,0.90308884,2933.9,2932.8,1.54682808]
[1764129875307,0.79860823,2933.8,2933.0,4.072]
[1764129875504,0.79860823,2933.7,2933.0,4.072]
[1764129875807,0.79860823,2933.6,2933.0,4.072]
[1764129876009,0.90308884,2933.9,2933.0,4.072]
[1764129876212,0.79866801,2933.8,2933.0,4.072]
[1764129876402,0.79866801,2933.7,2933.0,4.072]
[1764129876603,0.79866801,2933.6,2933.0,4.072]
[1764129876904,0.90308884,2933.9,2933.0,4.072]
[1764129877098,0.7986867,2933.8,2933.0,4.072]
[1764129877407,1.70177554,2933.8,2933.0,4.072]
[1764129877607,0.7986867,2933.7,2933.0,4.072]
[1764129882411,0.7986867,2933.6,2933.0,4.072]
[1764129882612,0.90308884,2933.9,2933.0,4.072]
[1764129883616,1.53806903,2933.6,2933.0,2.505]
[1764129883805,0.79904708,2933.5,2933.0,2.505]
[1764129884003,1.53806903,2933.6,2933.0,2.505]
[1764129884212,0.79905079,2933.5,2933.0,2.505]
[1764129884408,1.53806903,2933.6,2933.0,2.505]
[1764129884607,0.79905096,2933.5,2933.0,2.505]
[1764129884807,1.53806903,2933.6,2933.0,2.505]
[1764129885007,0.79905148,2933.5,2932.8,0.00875905]
[1764129885209,1.53806903,2933.6,2932.8,2.26975905]
[1764129885415,0.79904961,2933.5,2932.8,2.26975905]
[1764129885606,1.53806903,2933.6,2932.8,2.26975905]
[1764129885814,0.79904949,2933.5,2932.8,2.26975905]
[1764129886114,1.07358884,2933.8,2932.8,2.26975905]
[1764129886415,0.79905023,2933.7,2932.8,2.26975905]
[1764129886607,0.79905023,2933.6,2932.8,2.26975905]
[1764129886807,0.79905023,2933.5,2932.8,2.26975905]
[1764129887002,1.07358884,2933.8,2932.8,3.80782808]
[1764129887206,0.79904871,2933.7,2932.8,3.80782808]
[1764129887407,0.79904871,2933.6,2932.8,3.80782808]
[1764129887607,0.79904871,2933.5,2932.8,3.80782808]
[1764129887817,1.07358884,2933.8,2932.8,3.80782808]
[1764129888016,0.79901743,2933.7,2932.8,3.80782808]
[1764129888216,0.79901743,2933.6,2932.8,3.80782808]
[1764129888417,0.79901743,2933.5,2932.8,3.80782808]
[1764129888621,1.07358884,2933.8,2932.8,3.80782808]
[1764129888822,0.79901913,2933.7,2932.8,3.80782808]
[1764129889009,0.79901913,2933.6,2932.8,6.25616213]
[1764129889216,0.79901913,2933.5,2932.8,3.80782808]
[1764129889412,1.07358884,2933.8,2932.8,3.80782808]
[1764129889620,0.79904253,2933.7,2932.8,3.80782808]
[1764129889816,0.79904253,2933.6,2932.8,3.80782808]
[1764129890022,0.79904253,2933.5,2932.8,3.80782808]
[1764129890217,1.07358884,2933.8,2932.8,3.80782808]
[1764129890425,0.79909535,2933.7,2932.8,3.80782808]
[1764129890628,0.79909535,2933.6,2932.8,3.80782808]
[1764129890824,0.79909535,2933.5,2932.8,3.80782808]
[1764129891024,1.07358884,2933.8,2932.8,3.80782808]
[1764129891323,0.79909535,2933.7,2932.8,6.25616213]
[1764129891528,0.79909535,2933.6,2932.8,6.25616213]
[1764129891732,0.79909535,2933.5,2932.8,6.25616213]
[1764129892028,1.07358884,2933.8,2932.8,6.25616213]
[1764129892226,0.79915602,2933.7,2932.8,6.25616213]
[1764129892429,0.79915602,2933.6,2932.8,6.25616213]
[1764129892626,0.79915602,2933.5,2932.8,6.25616213]
[1764129892822,1.07358884,2933.8,2932.8,6.25616213]
[1764129893017,0.79915719,2933.7,2932.8,6.25616213]
[1764129893223,0.79915719,2933.6,2932.8,6.25616213]
[1764129893428,0.79915719,2933.5,2932.8,6.25616213]
[1764129893627,1.07358884,2933.8,2932.8,6.25616213]
[1764129893829,0.7992022,2933.7,2932.8,6.25616213]
[1764129894032,0.7992022,2933.6,2932.8,6.25616213]
[1764129894234,0.7992022,2933.5,2932.8,6.25616213]
[1764129894429,1.07358884,2933.8,2932.8,6.25616213]
[1764129894629,0.79926864,2933.7,2932.8,6.25616213]
[1764129894830,0.79926864,2933.6,2932.8,6.25616213]
[1764129895033,0.79926864,2933.5,2932.8,6.25616213]
[1764129895229,1.07358884,2933.8,2932.8,6.25616213]
[1764129895434,0.7993642,2933.7,2932.8,6.25616213]
[1764129895734,0.7993642,2933.6,2932.8,3.99516213]
[1764129895939,0.7993642,2933.5,2932.9,4.564]
[1764129896131,0.90308884,2933.8,2932.9,4.564]
[1764129896534,1.7024529,2933.8,2932.8,3.99516213]
[1764129896837,1.7024529,2933.7,2933.0,4.395]
[1764129897036,0.79936406,2933.6,2933.0,4.395]
[1764129897226,0.79936406,2933.5,2933.0,4.395]
[1764129897430,0.79936406,2933.4,2932.8,4.85075905]
[1764129897627,0.90308884,2933.7,2932.8,4.85075905]
[1764129898839,1.70248267,2933.8,2932.8,4.85075905]
[1764129899139,0.79939383,2933.7,2932.8,4.85075905]
[1764129899337,0.79939383,2933.6,2932.8,4.85075905]
[1764129899529,0.79939383,2933.5,2932.8,4.85075905]
[1764129899726,0.79959636,2933.4,2932.8,0.00875905]
[1764129899938,1.53806903,2933.6,2932.8,3.64475905]
[1764129900132,0.79960547,2933.5,2932.8,3.64475905]
[1764129900333,0.79960547,2933.4,2932.8,3.64475905]
[1764129900533,0.90308884,2933.7,2932.8,3.64475905]
[1764129901031,0.90385371,2933.7,2932.8,3.64475905]
[1764129901232,0.79960454,2933.6,2932.8,3.64475905]
[1764129901429,0.79960454,2933.5,2932.8,3.64475905]
[1764129901628,0.79960454,2933.4,2932.8,0.00875905]
[1764129901834,1.53806903,2933.6,2932.8,0.00875905]
[1764129902029,0.799544,2933.5,2932.8,0.00875905]
[1764129902229,0.799544,2933.4,2932.8,0.00875905]
[1764129902432,1.53806903,2933.6,2932.8,0.00875905]
[1764129902634,1.53806903,2933.3,2932.8,0.00875905]
[1764129902841,0.79948315,2933.2,2932.8,0.00875905]
[1764129903135,0.79948315,2933.1,2932.8,0.00875905]
[1764129903342,1.53806903,2933.3,2932.8,0.00875905]
[1764129903536,0.79892948,2933.2,2932.8,0.00875905]
[1764129903843,0.79892948,2933.1,2932.8,0.00875905]
[1764129904031,1.20104354,2933.6,2932.8,0.00875905]
[1764129904032,0.90385371,2933.5,2932.8,0.00875905]
[1764129904234,0.79892009,2933.4,2932.8,0.00875905]
[1764129904431,0.79892009,2933.3,2932.8,0.00875905]
[1764129904636,0.79892009,2933.2,2932.8,0.00875905]
[1764129904836,0.90385371,2933.5,2932.8,0.00875905]
[1764129905146,2.27795132,2933.4,2932.8,0.00875905]
[1764129905344,0.79872386,2933.3,2932.8,0.00875905]
[1764129905643,0.79872386,2933.2,2932.8,0.00875905]
[1764129905941,1.47922746,2933.4,2932.8,0.00875905]
[1764129906238,1.47922746,2933.2,2932.8,0.00875905]
[1764129908047,0.79834416,2933.1,2932.8,0.00875905]
[1764129908237,1.47922746,2933.2,2932.8,0.00875905]
[1764129909444,0.90385371,2933.5,2932.8,0.00875905]
[1764129909647,1.47922746,2933.2,2932.8,0.00875905]
[1764129910842,2.680271,2932.9,2931.4,2.44833405]
[1764129911140,1.47922746,2932.3,2931.5,1.47922746]
[1764129911345,1.47922746,2932.5,2931.7,1.47922746]
[1764129911647,1.47922746,2932.3,2931.7,1.47922746]
[1764129911842,1.4880196,2932.3,2931.7,1.48772024]
[1764129912045,1.4880196,2932.3,2931.7,0.00849278]
[1764129914042,1.47922746,2931.8,2930.7,2.44833405]
[1764129914242,1.47922746,2931.1,2930.4,2.44833405]
[1764129914443,1.47922746,2930.9,2930.3,3.02]
[1764129914644,1.47922746,2931.1,2930.4,1.47922746]
[1764129914948,1.47922746,2931.3,2930.4,1.47922746]
[1764129915147,1.47922746,2930.9,2930.5,0.0051157]
[1764129916147,1.47922746,2930.9,2930.4,0.00304387]
[1764129916148,1.47922746,2930.6,2930.4,0.00304387]
[1764129916353,1.47922746,2930.6,2929.9,1.47922746]
[1764129917048,1.47922746,2931.0,2930.1,1.47922746]
[1764129917245,0.0051157,2930.8,2930.3,0.0051157]
[1764129917943,1.48434316,2930.8,2930.3,0.0051157]
[1764129921052,1.47922746,2930.6,2930.3,0.0051157]
[1764129922850,0.0051157,2930.8,2930.3,0.0051157]
[1764129923043,0.0051157,2930.8,2930.3,1.48434316]
[1764129923242,0.0051157,2930.8,2930.3,0.0051157]
[1764129923753,0.0051157,2930.8,2930.6,1.47922746]
[1764129923951,0.0051157,2930.8,2930.4,1.47922746]
[1764129924152,0.0051157,2930.8,2930.3,0.0051157]
[1764129924353,0.0051157,2930.8,2930.3,1.48434316]
[1764129925154,0.0051157,2930.8,2930.6,1.47922746]
[1764129925755,0.0051157,2930.8,2930.4,1.47922746]
[1764129926446,0.0051157,2930.8,2930.6,1.47922746]
[1764129927653,1.47922746,2930.7,2930.3,0.0051157]
[1764129927849,1.47922746,2930.7,2930.3,0.0381157]
[1764129928156,0.0051157,2930.8,2930.3,0.0381157]
[1764129931157,1.48434316,2930.8,2930.3,0.0381157]
[1764129931349,1.47922746,2930.4,2930.3,0.0051157]
[1764129936658,1.47922746,2930.6,2930.3,0.0051157]
[1764129938853,1.47922746,2930.4,2930.3,0.0051157]
[1764129942150,2.27469091,2930.4,2930.3,0.0051157]
[1764129942350,2.27469091,2930.4,2930.1,0.00238997]
[1764129942553,1.47922746,2930.2,2929.2,1.47922746]
[1764129942752,1.47922746,2929.9,2929.2,1.47922746]
[1764129942961,1.47922746,2929.9,2929.3,3.291]
[1764129943262,1.47922746,2930.1,2929.3,3.2961157]
[1764129943661,1.48251117,2930.1,2929.3,3.29973159]
[1764129944060,0.00328371,2930.1,2929.3,3.29973159]
[1764129944266,0.00328371,2930.1,2929.9,1.47922746]
[1764129944969,0.00328371,2930.1,2929.7,1.47922746]
[1764129947167,0.00328371,2930.1,2929.9,1.47922746]
[1764129947667,0.00328371,2930.1,2930.0,1.47922746]
[1764129948366,0.00328371,2930.1,2929.4,0.17076]
[1764129948562,0.00328371,2930.1,2929.5,3.44822746]
[1764129948757,0.00328371,2930.1,2929.7,1.47922746]
[1764129949558,0.00328371,2930.1,2929.5,3.881]
[1764129949764,0.00328371,2930.1,2929.9,1.47922746]
[1764129952463,0.0051157,2930.8,2930.0,1.47922746]
[1764129952663,0.0051157,2930.8,2930.7,1.47922746]
[1764129952865,0.90057899,2931.6,2930.7,1.47922746]
[1764129953068,0.79668634,2931.5,2930.7,2.69822746]
[1764129953269,0.79668634,2931.4,2930.7,2.69822746]
[1764129953477,0.80069354,2931.4,2930.7,2.69822746]
[1764129953677,0.0040072,2931.4,2930.7,5.07122746]
[1764129953871,0.0051157,2931.3,2930.8,0.0051157]
[1764129955369,0.0051157,2931.3,2931.1,1.47922746]
[1764129955874,0.0051157,2931.3,2930.9,1.47922746]
[1764129956571,0.0051157,2931.3,2931.1,1.47922746]
[1764129960880,0.0051157,2931.3,2930.9,1.47922746]
[1764129961980,0.0051157,2931.3,2930.8,0.0051157]
[1764129964585,0.0051157,2931.3,2931.1,1.48069417]
[1764129965586,0.0051157,2931.3,2931.2,1.53992237]
[1764129967083,0.0051157,2931.3,2931.1,1.095]
[1764129967286,0.0051157,2931.3,2931.0,5.12392237]
[1764129969786,0.0051157,2931.3,2931.0,1.53992237]
[1764129969987,0.0051157,2931.3,2931.0,1.488]
[1764129970193,0.0051157,2931.3,2931.0,3.796]
[1764129970499,0.0051157,2931.3,2930.9,3.843]
[1764129971596,0.0051157,2931.3,2930.8,4.2481157]
[1764129972399,0.0051157,2931.3,2930.8,0.0051157]
[1764129973994,1.53992237,2931.1,2930.8,0.0051157]
[1764129974391,0.0051157,2931.3,2930.8,0.0051157]
[1764129978706,0.0051157,2931.3,2930.8,1.4231157]
[1764129979208,0.0051157,2931.3,2931.0,1.53992237]
[1764129982704,0.0051157,2931.3,2930.8,1.4231157]
[1764129983803,0.0051157,2931.3,2930.8,0.0051157]
[1764129991011,1.54503807,2931.3,2930.8,0.0051157]
[1764129993506,0.0051157,2931.3,2930.8,0.0051157]
[1764129993709,0.17067,2930.9,2930.0,2.3700045]
[1764129993905,1.53992237,2930.7,2929.5,1.53992237]
[1764129994111,0.7986043,2930.6,2929.5,1.53992237]
[1764129994305,1.53992237,2930.7,2929.5,1.53992237]
[1764129994509,0.17067,2930.9,2929.8,1.53992237]
[1764129994708,0.79818042,2930.8,2930.1,0.0051157]
[1764129994917,0.79818042,2930.7,2930.1,0.0051157]
[1764129995119,0.17067,2930.9,2930.1,0.0051157]
[1764129995307,0.79783164,2930.8,2930.1,0.0051157]
[1764129995513,0.17067,2930.9,2930.1,0.0051157]
[1764129995720,0.79780975,2930.8,2930.1,0.0051157]
[1764129996021,1.53992237,2930.4,2930.1,0.0051157]
[1764129999214,1.53992237,2930.4,2928.8,3.05774385]
[1764129999416,1.53992237,2930.0,2929.4,0.764]
[1764130000212,1.53992237,2930.0,2929.4,0.0051157]
[1764130001123,1.53992237,2930.1,2929.4,0.0051157]
[1764130002024,1.53992237,2929.8,2929.4,0.0051157]
[1764130002231,1.53992237,2929.5,2929.4,0.0051157]
[1764130002523,1.53992237,2929.5,2929.3,0.00361589]
[1764130002524,1.53992237,2929.5,2928.7,1.53121002]
[1764130002717,1.53992237,2929.2,2928.6,1.359]
[1764130002920,1.53992237,2929.5,2928.6,1.359]
[1764130003115,0.0051157,2929.7,2928.6,2.89892237]
[1764130003316,0.0051157,2929.7,2928.9,1.543338]
[1764130003317,0.00898652,2929.7,2928.9,1.543338]
[1764130003720,0.00898652,2929.7,2928.9,0.00341563]
[1764130004217,1.54890889,2929.7,2928.9,0.00341563]
[1764130006930,0.00898652,2929.7,2928.9,1.543338]
[1764130009934,0.00898652,2929.7,2929.2,1.53992237]
[1764130011030,0.00898652,2929.7,2928.9,0.00341563]
[1764130011031,1.54890889,2929.7,2928.9,0.00341563]
[1764130011233,1.54890889,2929.7,2929.0,0.944]
[1764130012425,1.54890889,2929.7,2929.0,2.872]
[1764130012631,1.54264607,2929.6,2928.9,0.00341563]
[1764130012831,1.54264607,2929.6,2928.9,0.68841563]
[1764130013131,0.00898652,2929.7,2928.9,0.68841563]
[1764130014033,0.00898652,2929.7,2928.9,2.00841563]
[1764130017625,0.00898652,2929.7,2929.1,0.17078]
[1764130017935,0.00898652,2929.7,2929.0,2.679]
[1764130018633,0.00898652,2929.7,2928.9,0.00341563]
[1764130022135,0.00898652,2929.7,2929.1,0.17078]
[1764130022736,1.79570663,2930.4,2929.2,0.17077]
[1764130022938,1.79570663,2930.4,2929.2,2.61650029]
[1764130023336,1.79570663,2930.4,2929.3,2.44573029]
[1764130023733,0.0051157,2930.1,2929.3,2.44573029]
[1764130024342,0.0051157,2930.1,2929.5,0.17075]
[1764130024639,0.90057899,2931.5,2930.2,0.17071]
[1764130024834,0.90057899,2931.8,2930.3,2.76414886]
[1764130025030,0.90057899,2932.1,2930.4,2.44573029]
[1764130025237,0.79559084,2932.0,2930.4,2.44573029]
[1764130025438,0.79559084,2931.9,2930.5,1.46]
[1764130025638,0.0051157,2931.5,2930.9,0.0051157]
[1764130025836,0.0051157,2931.5,2930.9,0.00808557]
[1764130028944,0.17069,2930.5,2929.3,3.05774385]
[1764130029142,2.20044424,2929.9,2928.1,0.17083]
[1764130029446,2.20044424,2929.9,2928.2,2.44573029]
[1764130029644,2.20044424,2929.9,2928.5,2.44573029]
[1764130029846,0.0051157,2929.5,2928.9,0.0051157]
[1764130030046,0.00911545,2929.5,2928.9,0.0051157]
[1764130030243,0.00911545,2929.5,2929.1,2.44573029]
[1764130030747,0.00911545,2929.5,2929.2,2.44573029]
[1764130030949,0.00911545,2929.5,2929.1,2.44573029]
[1764130031146,0.00911545,2929.5,2929.2,2.44573029]
[1764130031344,0.00911545,2929.5,2929.1,2.44573029]
[1764130031736,0.00911545,2929.5,2929.2,2.44573029]
[1764130031942,0.00911545,2929.5,2929.1,2.44573029]
[1764130032446,0.00911545,2929.5,2929.2,2.44573029]
[1764130032646,0.00911545,2929.5,2929.1,2.44573029]
[1764130033350,0.00911545,2929.5,2929.2,2.44573029]
[1764130033548,0.00911545,2929.5,2929.1,2.44573029]
[1764130034050,0.00911545,2929.5,2929.2,2.44573029]
[1764130034245,0.00911545,2929.5,2929.1,2.44573029]
[1764130034451,2.20955969,2929.5,2929.0,2.44573029]
[1764130036855,0.00911545,2929.5,2928.9,0.0051157]
[1764130037052,0.00911545,2929.5,2929.3,2.44573029]
[1764130037446,0.00911545,2929.5,2929.4,2.44573029]
[1764130037746,0.00911545,2929.5,2929.3,2.44573029]
[1764130037945,0.00911545,2929.5,2928.9,0.0051157]
[1764130038148,0.00911545,2929.5,2929.1,2.44573029]
[1764130038553,0.00911545,2929.5,2929.2,2.44573029]
[1764130038742,0.00911545,2929.5,2928.9,0.0051157]
[1764130038947,0.00911545,2929.5,2929.1,2.44573029]
[1764130039347,0.00911545,2929.5,2929.2,2.44573029]
[1764130039652,0.00911545,2929.5,2929.1,2.44573029]
[1764130040349,2.20044424,2929.4,2928.9,0.0051157]
[1764130040552,2.20044424,2929.4,2928.9,2.45084599]
[1764130040753,2.20044424,2929.4,2929.0,2.44573029]
[1764130040953,0.00911545,2929.5,2929.1,2.44573029]
[1764130041454,0.00911545,2929.5,2929.2,2.44573029]
[1764130041656,0.00911545,2929.5,2929.1,2.44573029]
[1764130042053,0.00911545,2929.5,2929.2,2.44573029]
[1764130042249,0.00911545,2929.5,2929.1,2.44573029]
[1764130042449,0.00911545,2929.5,2928.9,0.0051157]
[1764130042650,0.00911545,2929.5,2929.3,2.44573029]
[1764130043151,0.00911545,2929.5,2929.4,2.44573029]
[1764130043353,0.00911545,2929.5,2929.3,2.44573029]
[1764130043754,0.00911545,2929.5,2929.4,2.44573029]
[1764130044053,0.00911545,2929.5,2929.3,2.44573029]
[1764130044253,2.20044424,2929.4,2929.1,2.44573029]
[1764130044456,2.20044424,2929.2,2929.1,2.44573029]
[1764130044654,2.20044424,2929.2,2928.9,0.0051157]
[1764130044854,2.20044424,2929.2,2929.0,2.44573029]
[1764130045052,2.20044424,2929.2,2928.9,0.0051157]
[1764130045760,2.20044424,2929.2,2928.9,2.45084599]
[1764130046551,0.17081,2928.6,2927.5,2.44340394]
[1764130046849,2.20044424,2927.6,2926.7,0.483]
[1764130047053,2.20044424,2928.0,2926.7,0.483]
[1764130047256,2.20044424,2928.0,2927.2,2.44573029]
[1764130047453,2.20044424,2928.0,2927.4,2.44573029]
[1764130047658,2.20555994,2928.0,2927.4,2.45205352]
[1764130047952,2.20555994,2928.0,2927.4,0.00632323]
[1764130048158,2.20555994,2928.0,2927.8,2.44573029]
[1764130048556,2.20555994,2928.0,2927.4,0.00632323]
[1764130048763,2.20555994,2928.0,2927.6,2.44573029]
[1764130049255,2.20555994,2928.0,2927.7,2.44573029]
[1764130049451,2.20555994,2928.0,2927.6,2.44573029]
[1764130049855,2.20555994,2928.0,2927.7,2.44573029]
[1764130050056,2.20555994,2928.0,2927.6,2.44573029]
[1764130050454,2.20555994,2928.0,2927.7,2.44573029]
[1764130050652,2.20555994,2928.0,2927.6,2.44573029]
[1764130051053,2.20555994,2928.0,2927.7,2.44573029]
[1764130051254,2.20555994,2928.0,2927.6,2.44573029]
[1764130051562,0.17085,2927.8,2925.7,2.61437394]
[1764130051762,0.17085,2927.8,2926.5,2.44573029]
[1764130051958,0.17085,2927.8,2926.6,2.44573029]
[1764130052159,0.17085,2927.8,2926.1,2.20044424]
[1764130052353,0.17085,2927.8,2927.0,2.44573029]
[1764130052551,0.17085,2927.8,2927.0,2.44838604]
[1764130052860,0.17085,2927.8,2927.4,2.44573029]
[1764130053356,0.17085,2927.8,2927.6,2.44573029]
[1764130053553,0.17085,2927.8,2927.4,2.44573029]
[1764130053954,0.17085,2927.8,2927.6,2.44573029]
[1764130054161,0.0051157,2928.0,2927.7,2.44573029]
[1764130054456,0.0051157,2928.0,2927.0,0.00265575]
[1764130054761,0.0051157,2928.0,2927.6,2.44573029]
[1764130055266,0.0051157,2928.0,2927.9,2.44573029]
[1764130055561,0.0051157,2928.0,2927.6,2.44573029]
[1764130055963,0.0051157,2928.0,2927.9,2.44573029]
[1764130056261,0.0051157,2928.0,2927.6,2.44573029]
[1764130056767,0.0051157,2928.0,2927.8,2.44573029]
[1764130056963,0.0051157,2928.0,2927.6,2.44573029]
[1764130057363,0.0051157,2928.0,2927.8,2.44573029]
[1764130057563,0.0051157,2928.0,2927.0,0.00265575]
[1764130057765,0.0051157,2928.0,2927.4,2.44573029]
[1764130058266,0.0051157,2928.0,2927.8,2.44573029]
[1764130058566,0.0051157,2928.0,2927.6,2.44573029]
[1764130059059,0.0051157,2928.0,2927.9,2.44573029]
[1764130059267,0.0051157,2928.0,2927.6,2.44573029]
[1764130059664,0.0051157,2928.0,2927.9,2.44573029]
[1764130059865,0.0051157,2928.0,2927.6,2.44573029]
[1764130060265,0.0051157,2928.0,2927.9,2.44573029]
[1764130060463,0.0051157,2928.0,2927.7,2.44573029]
[1764130060660,0.0051157,2928.0,2927.6,2.44573029]
[1764130060862,0.0051157,2928.0,2927.1,0.584]
[1764130061067,0.0051157,2928.0,2927.7,2.44573029]
[1764130061369,0.0051157,2928.0,2927.5,2.44573029]
[1764130061570,0.0051157,2928.0,2927.7,2.44573029]
[1764130061768,0.1759557,2928.0,2927.4,2.44573029]
[1764130062272,0.1759557,2928.0,2927.6,2.44573029]
[1764130062469,0.1759557,2928.0,2927.4,2.44573029]
[1764130062863,0.1759557,2928.0,2927.6,2.44573029]
[1764130063165,0.1759557,2928.0,2927.4,2.44573029]
[1764130063666,0.1759557,2928.0,2927.0,0.00265575]
[1764130063864,2.20044424,2927.2,2927.0,0.00265575]
[1764130064063,0.00443135,2927.2,2927.0,0.00265575]
[1764130064270,0.00443135,2927.2,2927.1,2.44573029]
[1764130070374,0.17532135,2927.2,2927.1,2.44573029]
[1764130070778,0.1709,2926.9,2925.8,0.465]
[1764130070977,0.00512453,2926.6,2925.1,1.69954638]
[1764130071374,0.00512453,2926.6,2925.2,1.245]
[1764130071580,0.00512453,2926.6,2925.3,3.44]
[1764130074371,0.00512453,2926.6,2925.2,0.0042848]
[1764130074579,0.00512453,2926.6,2925.3,3.724]
[1764130074777,2.20044424,2926.3,2925.3,3.724]
[1764130074973,2.20044424,2926.3,2924.4,3.05774385]
[1764130074974,2.20044424,2925.4,2924.3,2.44340394]
[1764130075177,2.20044424,2925.1,2923.2,3.84]
[1764130075481,0.00512453,2924.4,2923.2,3.84]
[1764130075982,0.00936119,2924.4,2923.2,3.84295405]
[1764130077581,0.00936119,2924.4,2923.2,0.00295405]
[1764130077788,0.00936119,2924.4,2923.3,1.426]
[1764130077986,0.00936119,2924.4,2923.4,2.20044424]
[1764130078287,0.00936119,2924.4,2923.4,2.37155424]
[1764130078480,0.00936119,2924.4,2923.4,0.17111]
[1764130079286,0.00936119,2924.4,2923.5,2.819]
[1764130080890,0.00936119,2924.4,2923.6,3.087]
[1764130081093,0.00936119,2924.4,2923.7,3.019]
[1764130081387,0.00936119,2924.4,2923.5,2.816]
[1764130081577,0.00936119,2924.4,2923.2,0.00295405]
[1764130081778,2.20044424,2924.0,2923.2,0.00295405]
[1764130082984,0.00936119,2924.4,2923.2,0.00295405]
[1764130084984,0.00936119,2924.4,2923.2,0.17407405]
[1764130085185,0.00936119,2924.4,2923.3,0.17111]
[1764130086183,0.00936119,2924.4,2923.4,0.17111]